bitfinex/quotes_ETHUSD_20250504
["timestamp","ask_amount","ask_price","bid_price","bid_amount"]
[1746366350175,0.29412416,1827.9,1827.8,4.821]
[1746366350978,0.29412416,1827.9,1827.8,7.32040903]
[1746366351153,5.88294752,1828.2,1827.8,12.7367581]
[1746366351351,0.29540997,1827.9,1827.8,12.7367581]
[1746366351555,5.88294752,1828.2,1827.8,7.2657]
[1746366351876,3.0,1828.3,1827.8,12.7367581]
[1746366351877,0.29592627,1827.9,1827.8,12.7367581]
[1746366352042,8.46987425,1828.2,1827.9,0.55]
[1746366352374,8.46987425,1828.2,1828.0,0.8016]
[1746366352675,5.46987425,1828.2,1828.0,0.8016]
[1746366353079,0.27219462,1828.1,1828.0,0.8016]
[1746366354551,0.27219462,1828.1,1828.0,4.804]
[1746366354752,5.74235489,1828.1,1828.0,4.804]
[1746366355974,0.27219462,1828.1,1828.0,4.804]
[1746366356182,0.27219462,1828.1,1828.0,5.2844]
[1746366356479,5.74235489,1828.1,1828.0,5.2844]
[1746366356701,5.74235489,1828.1,1828.0,4.804]
[1746366358102,5.47075879,1827.9,1827.8,0.7961]
[1746366358400,5.4703248,1828.1,1828.0,4.804]
[1746366359400,5.47064069,1828.0,1827.8,0.7961]
[1746366359698,5.47064069,1828.0,1827.9,4.804]
[1746366360300,5.47075879,1827.9,1827.7,14.5]
[1746366360473,5.47131837,1827.8,1827.6,1.2855]
[1746366360674,5.4710581,1827.8,1827.7,4.804]
[1746366361387,5.47155372,1827.7,1827.4,1.3534]
[1746366361615,5.47135744,1827.7,1827.5,4.804]
[1746366361825,10.94300635,1827.7,1827.5,4.804]
[1746366362121,5.47135744,1827.7,1827.5,4.804]
[1746366363199,5.47168324,1827.6,1827.4,0.8034]
[1746366363425,5.47168324,1827.6,1827.5,4.804]
[1746366363603,6.04672888,1827.8,1827.5,4.804]
[1746366363803,5.74316141,1827.6,1827.5,4.804]
[1746366364032,5.47165681,1827.6,1827.5,4.804]
[1746366364338,5.47214626,1827.5,1827.2,6.9134]
[1746366364509,5.74362273,1827.4,1827.3,4.804]
[1746366365039,0.27122116,1827.4,1827.3,4.804]
[1746366365542,5.74347682,1827.4,1827.3,4.804]
[1746366368634,5.47315417,1827.1,1827.0,19.74]
[1746366369148,5.47417905,1826.8,1826.7,4.805]
[1746366369346,5.74005073,1826.8,1826.7,4.805]
[1746366369513,0.26587168,1826.8,1826.7,5.6145]
[1746366369716,5.47360384,1827.0,1826.7,5.66923713]
[1746366369941,0.26601354,1826.9,1826.8,0.56692371]
[1746366370619,5.73976689,1826.9,1826.8,0.56692371]
[1746366370815,5.73990896,1826.9,1826.7,5.6145]
[1746366371043,5.47405298,1826.8,1826.5,0.8095]
[1746366371247,5.47407757,1826.8,1826.6,4.805]
[1746366371759,0.26447721,1826.7,1826.6,4.805]
[1746366372145,5.73882986,1826.7,1826.6,4.805]
[1746366372327,5.47465235,1826.6,1826.5,1.3595]
[1746366372662,0.42071915,1827.1,1826.6,0.55]
[1746366372956,5.47369206,1827.0,1826.7,0.05473657]
[1746366373660,5.47377969,1826.9,1826.7,0.05473657]
[1746366373861,5.47369206,1827.0,1826.6,0.55]
[1746366373862,5.47408567,1826.8,1826.6,0.55]
[1746366374023,5.47408567,1826.8,1826.5,6.05145]
[1746366374624,5.47408567,1826.8,1826.5,6.10619113]
[1746366375654,5.47408567,1826.8,1826.5,6.05145]
[1746366377362,5.47495209,1826.5,1826.4,1e-08]
[1746366377669,8.63295209,1826.5,1826.4,1e-08]
[1746366378760,8.89075666,1826.5,1826.4,1e-08]
[1746366381957,9.30039822,1826.5,1826.4,1e-08]
[1746366382958,5.73275666,1826.5,1826.4,1e-08]
[1746366384327,6.85349756,1826.5,1826.4,1e-08]
[1746366385459,5.73275666,1826.5,1826.4,1e-08]
[1746366385853,6.15202076,1826.5,1826.4,1e-08]
[1746366386981,9.31002076,1826.5,1826.4,1e-08]
[1746366388665,9.30039627,1826.5,1826.4,1e-08]
[1746366392977,5.47585149,1826.2,1826.1,1e-08]
[1746366393272,9.98137744,1826.2,1826.1,1e-08]
[1746366394389,6.98137744,1826.2,1826.1,1e-08]
[1746366396093,9.98137744,1826.2,1826.1,1e-08]
[1746366396305,0.158,1825.8,1825.5,1e-08]
[1746366396597,0.158,1825.8,1824.5,2.71934718]
[1746366396598,5.4800526,1824.8,1824.5,2.71934718]
[1746366396756,6.57603309,1824.8,1824.7,1e-08]
[1746366396942,5.21918436,1824.5,1824.4,7.4235393]
[1746366397145,5.46666975,1824.5,1824.4,7.4235393]
[1746366397358,5.46666975,1824.5,1824.4,10.1816246]
[1746366397587,0.24748539,1824.5,1824.4,10.0316246]
[1746366398287,5.63925411,1824.4,1824.3,0.0014041]
[1746366398588,5.71288316,1824.4,1824.3,2.75349155]
[1746366398755,0.23162905,1824.4,1824.3,0.0014041]
[1746366398957,5.71288316,1824.4,1824.3,0.0014041]
[1746366399206,6.28416323,1824.4,1824.3,0.0014041]
[1746366399604,0.23162905,1824.4,1824.3,0.0014041]
[1746366400176,5.63779983,1824.9,1824.3,0.0014041]
[1746366400416,0.23219826,1824.8,1824.3,0.0014041]
[1746366400615,5.48125411,1824.4,1824.3,0.0014041]
[1746366400977,5.71288316,1824.4,1824.3,0.0014041]
[1746366401188,6.87369759,1824.4,1824.3,0.0014041]
[1746366401514,7.03169759,1824.4,1824.3,0.0014041]
[1746366401882,13.07169759,1824.4,1824.3,0.0014041]
[1746366402908,5.48305735,1823.8,1823.7,1e-08]
[1746366403125,4.17750605,1823.2,1822.8,0.00156767]
[1746366403300,6.04,1823.7,1822.8,5.00656767]
[1746366403493,5.48278211,1823.9,1823.1,6.27989758]
[1746366403692,5.48292696,1823.9,1823.3,3.0]
[1746366403920,0.21133979,1823.8,1823.5,3.0]
[1746366404108,11.52256242,1824.0,1823.5,9.27701145]
[1746366404288,11.52256242,1824.0,1823.2,3.90865317]
[1746366404289,5.4831896,1823.8,1823.6,5.005]
[1746366404483,0.21135949,1823.9,1823.3,0.55]
[1746366404695,0.21107459,1823.7,1823.5,8.48384485]
[1746366404899,0.21121705,1823.8,1823.7,9.033358]
[1746366405106,5.482072,1824.2,1823.9,3.0]
[1746366405393,0.20636594,1824.1,1823.9,8.48267827]
[1746366405599,5.48142115,1824.4,1824.0,0.8036]
[1746366405801,0.20675036,1824.3,1824.2,3.0]
[1746366406030,5.48075976,1824.6,1824.2,3.0]
[1746366406243,0.20267763,1824.3,1824.2,9.83545505]
[1746366406391,5.47927636,1825.1,1824.7,3.8036]
[1746366406585,5.47992272,1824.9,1824.7,0.8036]
[1746366406824,5.47992272,1824.9,1824.8,5.006]
[1746366407303,5.47959929,1825.0,1824.7,0.8036]
[1746366407504,5.47959929,1825.0,1824.5,0.8036]
[1746366407505,5.4800526,1824.8,1824.5,0.8036]
[1746366407719,5.47991855,1824.9,1824.6,8.006]
[1746366408591,5.47961303,1825.0,1824.6,8.006]
[1746366408791,6.0429984,1825.1,1824.6,13.48656597]
[1746366408986,5.47896504,1825.2,1824.7,5.48021273]
[1746366409188,5.47799637,1825.5,1825.0,5.47921068]
[1746366409505,5.47780915,1825.6,1825.1,11.28855585]
[1746366410240,5.47780915,1825.6,1825.1,11.28851122]
[1746366411193,0.19233135,1825.5,1825.1,11.28851122]
[1746366411394,0.19233135,1825.5,1825.1,14.94280596]
[1746366412117,0.19233135,1825.5,1825.2,5.47882824]
[1746366412318,5.47752378,1825.7,1825.3,5.47853182]
[1746366412519,0.19670472,1825.6,1825.3,5.47853182]
[1746366412895,0.19658982,1825.5,1825.3,5.47853182]
[1746366413101,5.47752378,1825.7,1825.3,6.026385]
[1746366413310,0.19678644,1825.6,1825.3,6.026385]
[1746366413535,5.47752378,1825.7,1825.3,6.026385]
[1746366413926,0.19673196,1825.6,1825.3,0.54785318]
[1746366414251,5.47752378,1825.7,1825.3,0.54785318]
[1746366414692,0.19715872,1825.6,1825.3,0.54785318]
[1746366414892,5.47752378,1825.7,1825.3,0.54785318]
[1746366415205,0.19704976,1825.6,1825.3,0.54785318]
[1746366415406,3.0,1825.6,1825.3,0.54785318]
[1746366415605,0.19685313,1825.5,1825.3,0.54785318]
[1746366416196,0.19685313,1825.5,1825.2,14.5]
[1746366416430,0.19685313,1825.5,1825.3,5.005]
[1746366416598,0.19685313,1825.5,1825.4,0.8104]
[1746366417491,0.40246593,1825.9,1825.4,6.83865134]
[1746366417833,0.18171132,1825.8,1825.4,6.83847862]
[1746366418067,0.18171132,1825.8,1825.4,8.57066328]
[1746366418271,5.47687322,1825.9,1825.5,5.47794929]
[1746366418467,0.18156921,1825.7,1825.5,10.9557136]
[1746366418773,0.1833239,1825.6,1825.5,6.02795124]
[1746366418924,8.47654801,1826.0,1825.5,6.02795124]
[1746366419124,0.18380469,1825.9,1825.6,6.2880014]
[1746366419368,0.18380469,1825.9,1825.7,5.004]
[1746366419673,5.47705115,1825.8,1825.7,5.004]
[1746366420057,5.66105851,1825.8,1825.7,5.004]
[1746366420435,0.18400736,1825.8,1825.7,5.004]
[1746366420830,5.47691893,1825.9,1825.7,5.004]
[1746366421038,0.18400736,1825.8,1825.7,5.004]
[1746366421535,0.18444177,1825.8,1825.7,5.004]
[1746366421774,5.47691893,1825.9,1825.7,5.004]
[1746366421931,0.18444177,1825.8,1825.7,5.004]
[1746366422135,5.47691893,1825.9,1825.7,5.004]
[1746366422347,0.18444177,1825.8,1825.7,5.004]
[1746366422636,5.47691893,1825.9,1825.7,5.004]
[1746366422831,0.1846044,1825.8,1825.7,5.004]
[1746366423034,0.1846044,1825.8,1825.7,10.48135115]
[1746366423345,5.47569975,1826.3,1825.8,6.24621792]
[1746366423533,5.47569975,1826.3,1825.9,6.0265966]
[1746366423739,0.17230541,1826.2,1825.9,6.0265966]
[1746366423940,0.17230541,1826.2,1825.8,0.7693]
[1746366423941,5.47615136,1826.1,1825.8,0.7693]
[1746366424135,5.47675119,1825.9,1825.8,0.7693]
[1746366424338,5.64854887,1825.9,1825.8,5.7723]
[1746366425230,3.17179768,1825.9,1825.5,0.7693]
[1746366425435,5.47728291,1825.8,1825.6,5.003]
[1746366425642,5.47735115,1825.7,1825.6,5.003]
[1746366425843,0.17151356,1825.7,1825.6,5.003]
[1746366426245,5.64886471,1825.7,1825.6,5.003]
[1746366426483,5.64886471,1825.7,1825.5,0.7693]
[1746366426685,5.64886471,1825.7,1825.6,5.003]
[1746366426884,1.69155314,1825.7,1825.1,0.7693]
[1746366427083,1.69155314,1825.7,1825.2,5.003]
[1746366427285,5.47809993,1825.5,1825.2,5.003]
[1746366427585,0.17108726,1825.4,1825.2,10.48176399]
[1746366427759,8.47776607,1825.6,1825.3,0.7693]
[1746366427961,5.64921349,1825.5,1825.3,0.7693]
[1746366428157,5.47825134,1825.4,1825.3,0.7693]
[1746366428362,5.47855147,1825.3,1825.2,5.003]
[1746366428670,5.6494966,1825.3,1825.2,5.003]
[1746366429089,0.17094513,1825.3,1825.1,5.003]
[1746366429385,5.47872452,1825.3,1825.2,5.003]
[1746366429555,6.76104135,1825.3,1825.2,5.003]
[1746366430162,6.76099903,1825.3,1825.2,5.003]
[1746366430377,6.7608683,1825.3,1825.2,5.003]
[1746366430692,5.47943056,1825.1,1824.7,35.0343]
[1746366430854,5.47957964,1825.0,1824.7,35.0343]
[1746366431190,5.64993483,1825.0,1824.8,5.003]
[1746366431489,0.17035519,1825.0,1824.9,5.003]
[1746366432183,5.64980724,1825.0,1824.9,5.003]
[1746366432359,5.64980724,1825.0,1824.9,5.004]
[1746366433180,5.64980724,1825.0,1824.7,35.0343]
[1746366433381,5.64980724,1825.0,1824.7,0.7693]
[1746366433574,5.64980724,1825.0,1824.8,5.021]
[1746366434079,0.17035519,1825.0,1824.8,5.021]
[1746366435482,0.17035519,1825.0,1824.9,5.022]
[1746366435886,5.47937349,1825.1,1824.9,5.022]
[1746366436086,0.16627776,1825.0,1824.9,5.022]
[1746366437385,8.47877068,1825.3,1824.9,11.31124846]
[1746366437567,5.47943526,1825.1,1824.9,5.7767]
[1746366437883,5.47943526,1825.1,1824.7,14.5]
[1746366437884,5.64577068,1825.0,1824.7,14.5]
[1746366438062,5.47978206,1824.9,1824.7,0.7547]
[1746366438266,0.16631863,1825.0,1824.8,5.022]
[1746366438586,5.47929062,1825.1,1824.8,5.022]
[1746366438763,0.16634587,1825.0,1824.8,11.05389615]
[1746366438965,11.51897305,1825.2,1824.8,5.56061232]
[1746366439166,5.64581399,1825.1,1824.8,4.98294232]
[1746366439759,5.64582241,1825.1,1824.8,4.98294232]
[1746366440684,5.47955596,1825.0,1824.8,4.98294232]
[1746366440853,0.16651532,1825.1,1824.8,4.98294232]
[1746366441054,0.16625815,1824.9,1824.8,11.01287143]
[1746366441302,6.04,1825.2,1825.0,0.8275]
[1746366441601,6.04,1825.2,1825.0,6.30683627]
[1746366441764,6.04,1825.2,1825.0,0.8275]
[1746366442485,5.47861765,1825.3,1825.0,0.8275]
[1746366442666,5.47870127,1825.3,1825.1,5.022]
[1746366442851,5.47883173,1825.3,1825.0,0.8275]
[1746366443054,5.47883173,1825.3,1825.2,5.022]
[1746366443267,6.57455097,1825.3,1825.2,5.022]
[1746366443685,3.0,1825.6,1825.2,5.022]
[1746366443891,10.95693435,1825.4,1825.2,5.022]
[1746366444087,5.47806761,1825.5,1825.2,5.022]
[1746366444259,5.47847155,1825.4,1825.2,5.022]
[1746366444757,5.47855147,1825.3,1825.2,5.022]
[1746366445486,6.57425377,1825.3,1825.2,5.022]
[1746366445689,6.57425377,1825.3,1824.8,0.8275]
[1746366445690,1.0957023,1825.3,1824.8,0.8275]
[1746366445880,5.47932544,1825.1,1824.9,5.022]
[1746366446192,5.4795854,1825.0,1824.8,0.8275]
[1746366446392,8.63630894,1825.4,1824.9,5.022]
[1746366446889,8.63630894,1825.4,1824.8,0.8275]
[1746366446890,5.47975231,1824.9,1824.8,0.8275]
[1746366447191,6.04,1825.2,1824.9,5.47968406]
[1746366447395,6.04,1825.2,1824.9,6.65839292]
[1746366447889,5.47926982,1825.1,1825.0,5.022]
[1746366448055,6.04,1825.2,1825.0,5.022]
[1746366448461,11.51895859,1825.2,1825.0,5.022]
[1746366448693,5.47915182,1825.1,1825.0,5.022]
[1746366448907,5.47915182,1825.1,1824.8,0.8275]
[1746366449112,5.47915182,1825.1,1825.0,5.022]
[1746366449595,11.51904792,1825.2,1825.0,5.022]
[1746366450095,5.4791927,1825.1,1824.8,0.8275]
[1746366450312,5.47915182,1825.1,1824.8,0.8275]
[1746366450592,5.47950591,1825.0,1824.9,5.022]
[1746366451294,5.47950591,1825.0,1824.8,0.8275]
[1746366451494,5.47950591,1825.0,1824.9,5.022]
[1746366451692,6.57531782,1825.0,1824.9,5.022]
[1746366451990,5.4798007,1824.9,1824.6,0.8275]
[1746366452196,5.47945205,1825.0,1824.7,5.022]
[1746366453191,5.47945482,1825.0,1824.8,5.022]
[1746366453395,5.47945482,1825.0,1824.9,5.022]
[1746366453812,5.64325532,1825.0,1824.9,5.022]
[1746366454475,0.1638005,1825.0,1824.9,5.022]
[1746366456002,11.93504875,1825.2,1824.9,5.7995]
[1746366456216,0.16413339,1825.1,1824.9,5.7995]
[1746366456504,0.16413339,1825.1,1824.9,11.27903283]
[1746366456713,0.16413339,1825.1,1825.0,5.47945205]
[1746366457276,0.16413339,1825.1,1825.0,6.02945205]
[1746366457477,0.16413339,1825.1,1825.0,0.55]
[1746366457793,0.16270405,1825.1,1825.0,0.55]
[1746366457995,5.47855288,1825.3,1825.0,0.55]
[1746366458207,0.16284621,1825.2,1825.0,0.55]
[1746366458371,0.16284621,1825.2,1825.1,5.47915182]
[1746366458578,11.51783629,1825.6,1825.2,5.4787521]
[1746366458891,5.62909707,1825.5,1825.3,5.022]
[1746366460119,0.15097367,1825.5,1825.3,5.022]
[1746366460807,5.62897297,1825.5,1825.3,5.022]
[1746366461610,1.86565248,1825.5,1825.1,0.7775]
[1746366461778,5.47882844,1825.3,1825.2,5.022]
[1746366461978,5.47894517,1825.2,1824.9,0.7743]
[1746366462174,0.1511473,1825.1,1825.0,5.022]
[1746366463810,0.1511473,1825.1,1825.0,4.965]
[1746366464106,6.19348073,1825.1,1825.0,4.965]
[1746366464510,6.19348073,1825.1,1824.8,0.55]
[1746366464511,5.47961335,1825.0,1824.7,0.7743]
[1746366464682,5.47961335,1825.0,1824.8,4.965]
[1746366464882,0.15042707,1824.9,1824.8,4.965]
[1746366465600,0.15042707,1824.9,1824.7,0.7743]
[1746366465601,5.63018665,1824.9,1824.7,0.7743]
[1746366465780,0.15042707,1824.9,1824.8,4.965]
[1746366466182,0.15042707,1824.9,1824.7,0.7743]
[1746366466403,0.15042707,1824.9,1824.8,4.965]
[1746366466603,5.63017938,1824.9,1824.8,4.965]
[1746366466785,0.15042707,1824.9,1824.8,4.965]
[1746366466988,0.15042707,1824.9,1824.7,0.7743]
[1746366467313,0.15042707,1824.9,1824.8,4.965]
[1746366468607,0.15048157,1824.9,1824.8,4.965]
[1746366468812,5.47946539,1825.0,1824.8,4.965]
[1746366469020,0.13438178,1824.9,1824.8,4.965]
[1746366470211,5.4793149,1825.1,1824.8,4.965]
[1746366470410,0.13457847,1825.0,1824.8,4.965]
[1746366471600,0.13457847,1825.0,1824.8,10.44504394]
[1746366471782,6.04,1825.3,1825.0,6.02921137]
[1746366471986,6.04,1825.3,1824.9,0.55]
[1746366471987,0.13486283,1825.2,1825.1,6.2325196]
[1746366472210,5.47807432,1825.5,1825.1,11.1975196]
[1746366472411,0.1350098,1825.4,1825.1,16.67645356]
[1746366472616,0.1350098,1825.4,1825.2,5.47881482]
[1746366472811,11.51784414,1825.6,1825.2,5.47881482]
[1746366473017,5.61318871,1825.5,1825.1,11.19741901]
[1746366473198,5.61318871,1825.5,1825.1,5.7184]
[1746366473404,5.47841934,1825.4,1825.2,4.965]
[1746366473631,0.13492206,1825.3,1825.2,4.965]
[1746366473830,6.64336773,1825.5,1825.2,4.965]
[1746366474033,0.13506419,1825.4,1825.2,4.965]
[1746366474704,0.13506419,1825.4,1825.2,10.44384216]
[1746366474910,0.13506419,1825.4,1825.2,6.63263561]
[1746366475235,0.1363671,1825.3,1825.2,7.18263561]
[1746366475425,11.51780557,1825.6,1825.2,7.18263561]
[1746366475623,0.1367058,1825.5,1825.2,10.99382284]
[1746366475993,0.1367058,1825.5,1825.3,5.47853693]
[1746366476205,0.1367058,1825.5,1825.4,6.78365134]
[1746366476698,5.47719644,1825.8,1825.4,6.78365134]
[1746366476899,0.13714723,1825.5,1825.4,6.78365134]
[1746366477100,5.47719644,1825.8,1825.4,7.46201647]
[1746366477300,0.13792689,1825.5,1825.4,7.46201647]
[1746366477530,11.51682052,1825.9,1825.5,6.02794462]
[1746366477831,5.47717048,1825.8,1825.4,1.43376513]
[1746366478011,5.47748958,1825.7,1825.5,4.965]
[1746366478816,5.88462913,1825.7,1825.5,4.965]
[1746366479038,5.47748958,1825.7,1825.5,4.965]
[1746366479250,5.63521696,1825.8,1825.5,4.965]
[1746366479751,5.47740942,1825.7,1825.5,4.965]
[1746366480519,5.63524175,1825.8,1825.5,4.965]
[1746366480919,10.95498809,1825.7,1825.5,4.965]
[1746366481237,5.47795124,1825.5,1825.4,0.7554]
[1746366481439,5.47781442,1825.6,1825.4,4.965]
[1746366481643,0.158,1825.4,1824.9,0.8276]
[1746366481947,5.47912759,1825.2,1825.0,4.965]
[1746366482329,5.47867448,1825.3,1824.9,6.30732466]
[1746366482639,5.47867448,1825.3,1825.1,4.965]
[1746366484040,0.14037378,1825.2,1825.1,4.965]
[1746366484929,6.04,1825.5,1825.2,6.26578754]
[1746366485854,6.04,1825.5,1825.2,0.7871]
[1746366486057,11.51796133,1825.5,1825.2,0.7871]
[1746366486256,6.04,1825.5,1825.2,0.7871]
[1746366486456,5.47781261,1825.6,1825.2,6.26579372]
[1746366486657,5.47781261,1825.6,1825.2,0.7871]
[1746366486885,5.47807713,1825.5,1825.2,0.7871]
[1746366487153,5.47838007,1825.4,1825.3,4.965]
[1746366487322,5.63612078,1825.5,1825.3,4.965]
[1746366487522,5.63595124,1825.5,1825.4,4.965]
[1746366488167,5.47888227,1825.2,1824.8,6.23613993]
[1746366488343,5.47888227,1825.2,1824.9,5.58861399]
[1746366488650,11.51871794,1825.3,1824.9,5.58861399]
[1746366488855,11.51872317,1825.3,1825.0,4.965]
[1746366489038,6.04,1825.3,1825.0,4.965]
[1746366489238,11.51855926,1825.3,1825.0,4.965]
[1746366489556,6.04,1825.3,1825.1,0.7563]
[1746366489754,6.04,1825.3,1825.1,6.23534037]
[1746366489961,6.04,1825.3,1825.1,6.23526317]
[1746366490129,6.04,1825.3,1825.2,5.47885163]
[1746366490452,16.99581705,1825.6,1825.1,6.23525675]
[1746366490653,5.47796594,1825.5,1825.1,6.23525675]
[1746366490862,5.89316781,1825.7,1825.3,6.2347214]
[1746366491150,5.89316781,1825.7,1825.4,4.965]
[1746366492456,0.41567832,1825.7,1825.4,4.965]
[1746366492657,5.47736085,1825.7,1825.4,4.965]
[1746366492829,5.47767563,1825.6,1825.4,4.965]
[1746366494078,5.47746869,1825.7,1825.4,4.965]
[1746366494441,5.88302881,1825.7,1825.4,4.965]
[1746366494642,0.40556012,1825.7,1825.4,11.56310266]
[1746366494868,11.51721337,1825.8,1825.4,11.56310266]
[1746366495775,6.04,1825.8,1825.5,0.7768]
[1746366495966,5.47659288,1826.0,1825.5,0.7768]
[1746366496162,5.47686747,1825.9,1825.5,6.25457899]
[1746366496379,5.88655053,1825.9,1825.5,8.03634447]
[1746366497277,5.88655053,1825.9,1825.5,2.55856548]
[1746366497456,5.88655053,1825.9,1825.5,8.03651234]
[1746366497657,5.88655053,1825.9,1825.5,22.53651234]
[1746366498282,5.47660565,1826.0,1825.6,6.02762804]
[1746366498453,5.47660565,1826.0,1825.6,8.93859445]
[1746366498780,0.12863869,1825.9,1825.6,8.93859365]
[1746366498980,0.12863869,1825.9,1825.6,8.8838232]
[1746366499680,0.12863869,1825.9,1825.7,6.28133493]
[1746366499878,6.04,1826.1,1825.8,10.40005115]
[1746366500080,6.04,1826.1,1825.9,0.804]
[1746366500279,6.04,1826.1,1825.9,6.28073384]
[1746366500443,6.04,1826.1,1825.9,0.804]
[1746366502155,5.47555263,1826.3,1825.9,6.28049849]
[1746366502784,5.47555263,1826.3,1825.9,0.804]
[1746366503156,5.47555263,1826.3,1825.9,6.28074991]
[1746366503475,8.63339942,1826.4,1826.0,0.62807499]
[1746366503676,5.47556852,1826.3,1826.0,0.62807499]
[1746366504892,8.47540197,1826.4,1826.0,0.62807499]
[1746366505059,5.47556204,1826.3,1826.0,0.62807499]
[1746366505258,0.41682675,1826.3,1826.0,0.62807499]
[1746366505451,5.47565974,1826.3,1826.0,0.62807499]
[1746366505957,8.47543121,1826.4,1826.0,0.62807499]
[1746366506482,5.47558107,1826.3,1826.0,0.62807499]
[1746366506873,8.47544242,1826.4,1826.0,0.62807499]
[1746366507083,5.47555173,1826.3,1826.0,0.62807499]
[1746366507885,8.47544242,1826.4,1826.0,6.10447936]
[1746366508090,8.47544242,1826.4,1826.1,0.61044794]
[1746366508286,5.47507203,1826.5,1826.2,5.6896]
[1746366508960,5.4753573,1826.4,1826.2,0.7676]
[1746366509161,5.4753573,1826.4,1826.3,4.922]
[1746366509955,5.4753573,1826.4,1826.1,0.61044794]
[1746366510158,5.4753573,1826.4,1826.0,1.39567499]
[1746366510371,5.4753573,1826.4,1826.2,4.922]
[1746366510573,10.9515197,1826.3,1826.0,1.39567499]
[1746366510784,5.47585149,1826.2,1826.1,4.922]
[1746366511383,5.47568193,1826.3,1826.1,4.922]
[1746366512274,5.47568193,1826.3,1826.1,5.5537675]
[1746366513382,5.47568193,1826.3,1826.2,4.922]
[1746366513581,5.63368193,1826.3,1826.2,4.922]
[1746366513887,5.75694951,1826.3,1826.2,4.922]
[1746366514583,5.59894951,1826.3,1826.2,4.922]
[1746366518706,11.63894951,1826.3,1826.2,4.922]
[1746366519812,6.16326758,1826.3,1826.2,4.922]
[1746366522507,6.16326758,1826.3,1826.2,5.7077]
[1746366523017,6.16326758,1826.3,1826.2,11.18355149]
[1746366523205,6.16326758,1826.3,1826.2,12.85192988]
[1746366523502,6.16326758,1826.3,1826.2,27.35192988]
[1746366524603,0.12326758,1826.3,1826.2,27.35192988]
[1746366524808,6.04,1826.7,1826.3,5.47536291]
[1746366525106,0.12553787,1826.6,1826.4,1.92623629]
[1746366525309,11.51438821,1826.7,1826.4,0.8287]
[1746366525486,0.12594873,1826.5,1826.4,5.6687]
[1746366526006,5.60090082,1826.5,1826.4,4.84]
[1746366526712,0.12594873,1826.5,1826.4,4.84]
[1746366527087,5.60090082,1826.5,1826.4,4.84]
[1746366531485,0.12594873,1826.5,1826.4,4.84]
[1746366531714,0.12594873,1826.5,1826.4,5.324]
[1746366531982,0.12594873,1826.5,1826.4,6.1527]
[1746366533209,0.12594873,1826.5,1826.4,12.17795186]
[1746366533411,6.04,1826.7,1826.6,1.3787]
[1746366533720,6.15612944,1826.7,1826.6,1.3787]
[1746366534914,11.63048209,1826.7,1826.6,5.6677]
[1746366535425,11.63048209,1826.7,1826.4,16.3672]
[1746366535725,5.47495209,1826.5,1826.4,14.5]
[1746366535924,5.47495209,1826.5,1826.4,4.839]
[1746366536112,5.59066195,1826.5,1826.4,4.839]
[1746366537114,5.59066195,1826.5,1826.3,0.8332]
[1746366537291,5.59066195,1826.5,1826.4,4.839]
[1746366538792,5.59066195,1826.5,1826.3,0.8332]
[1746366538994,5.59079425,1826.5,1826.4,4.839]
[1746366539193,5.59079425,1826.5,1826.1,0.8332]
[1746366539194,5.47530803,1826.4,1826.1,0.8332]
[1746366539525,0.11542613,1826.3,1826.2,4.839]
[1746366539726,5.47530803,1826.4,1826.2,6.85622]
[1746366539923,0.11542613,1826.3,1826.2,6.85622]
[1746366540223,5.47530803,1826.4,1826.2,6.85622]
[1746366540418,0.11542613,1826.3,1826.2,6.85622]
[1746366540797,5.47555166,1826.3,1826.2,2.01722]
[1746366540996,5.59097779,1826.3,1826.2,4.839]
[1746366541525,0.11542613,1826.3,1826.2,4.839]
[1746366541730,5.47537178,1826.4,1826.2,4.839]
[1746366542023,0.11542613,1826.3,1826.2,4.839]
[1746366542425,5.47509289,1826.5,1826.2,4.839]
[1746366542601,0.11542613,1826.3,1826.2,5.40622]
[1746366542795,5.47514332,1826.5,1826.2,5.40622]
[1746366542996,0.11542613,1826.3,1826.2,5.40622]
[1746366543222,5.47514332,1826.5,1826.3,0.8095]
[1746366543434,5.47482694,1826.6,1826.3,0.8095]
[1746366543599,5.4749761,1826.5,1826.3,1.97864691]
[1746366543799,0.11570986,1826.5,1826.3,1.97864691]
[1746366543998,5.59088807,1826.5,1826.3,1.97864691]
[1746366544199,5.47525186,1826.4,1826.3,0.8095]
[1746366544398,5.47525186,1826.4,1826.3,5.6485]
[1746366544611,0.11556801,1826.4,1826.3,5.6485]
[1746366545631,5.59081987,1826.4,1826.3,0.8095]
[1746366545932,5.59085003,1826.4,1826.3,4.839]
[1746366546710,5.59085003,1826.4,1825.9,34.256]
[1746366546711,5.47585149,1826.2,1825.9,34.256]
[1746366547025,0.11514234,1826.1,1826.0,4.839]
[1746366547420,5.47604309,1826.2,1826.0,4.839]
[1746366547625,0.11514234,1826.1,1826.0,4.839]
[1746366547935,5.47604309,1826.2,1826.0,4.839]
[1746366548126,0.11514234,1826.1,1826.0,7.5871141]
[1746366548325,5.47574445,1826.3,1826.0,7.5871141]
[1746366548532,0.1154855,1826.2,1826.0,7.5871141]
[1746366549541,5.59138421,1826.2,1826.0,7.5871141]
[1746366550339,0.1154855,1826.2,1826.0,7.5871141]
[1746366550526,0.1154855,1826.2,1826.1,0.75871141]
[1746366551553,11.51536046,1826.4,1826.2,0.55]
[1746366551710,6.04,1826.4,1826.2,0.55]
[1746366552437,6.04,1826.4,1826.3,0.7554]
[1746366552642,11.51483674,1826.6,1826.3,0.7554]
[1746366552843,11.51483674,1826.6,1826.4,4.84]
[1746366553144,5.47495209,1826.5,1826.4,4.84]
[1746366553637,11.51483674,1826.6,1826.4,5.39954]
[1746366554541,6.04,1826.6,1826.4,5.39954]
[1746366556005,6.04,1826.6,1826.4,19.89954]
[1746366556361,6.04,1826.6,1826.5,0.55]
[1746366557748,6.04,1826.6,1826.5,1.3373]
[1746366557961,6.04,1826.6,1826.5,4.00849343]
[1746366558754,6.15605296,1826.6,1826.5,4.00849343]
[1746366559354,6.15605296,1826.6,1826.5,1.3373]
[1746366559655,6.15605296,1826.6,1826.5,15.8373]
[1746366559954,6.15605296,1826.6,1826.5,15.8276755]